bitfinex/quotes_ETHUSD_20240816
["timestamp","ask_amount","ask_price","bid_price","bid_amount"]
[1723778101852,0.23893138,2589.8,2589.7,1.93071]
[1723778102364,0.23893138,2589.8,2589.6,1.93076]
[1723778102678,0.23893138,2589.7,2589.6,1.93076]
[1723778103060,3.34528,2590.0,2589.6,1.93076]
[1723778103262,0.23893371,2589.9,2589.6,1.93076]
[1723778103575,0.23893371,2589.8,2589.6,1.93076]
[1723778103772,0.23893371,2589.7,2589.6,1.93076]
[1723778105465,3.34528,2590.0,2589.6,1.93076]
[1723778105787,3.95044604,2589.9,2589.6,1.93076]
[1723778105991,0.23894606,2589.8,2589.6,1.93076]
[1723778106200,0.23894606,2589.7,2589.6,1.93076]
[1723778106774,7.44,2590.7,2590.2,1.93035]
[1723778106775,3.71149998,2590.3,2590.2,1.93035]
[1723778106973,3.71149998,2590.3,2589.7,1.93069]
[1723778106974,0.23882712,2590.3,2589.8,2.8187875]
[1723778107178,0.23882712,2590.2,2590.1,1.93039]
[1723778107501,0.23882712,2590.2,2590.1,3.86081]
[1723778107669,0.23882712,2590.2,2590.1,7.21638163]
[1723778108092,0.23882712,2590.2,2590.1,7.21638235]
[1723778108415,0.23883371,2590.2,2589.9,1.93052]
[1723778108711,3.71149998,2590.6,2589.8,1.93061]
[1723778108712,2.73253371,2590.1,2589.8,1.93061]
[1723778108881,2.73253371,2590.1,2589.6,1.93078]
[1723778108882,0.23883371,2590.0,2589.6,1.93078]
[1723778109079,0.23883371,2589.9,2589.7,1.93072]
[1723778109310,2.4937,2590.1,2589.9,1.93057]
[1723778109848,0.23887844,2590.0,2589.7,1.93072]
[1723778109966,0.23887844,2589.9,2589.7,1.93072]
[1723778110172,0.23887844,2589.8,2589.7,1.93072]
[1723778110368,0.23887844,2590.0,2589.7,1.93072]
[1723778110707,0.23887844,2589.9,2589.7,1.93072]
[1723778111007,2.4937,2590.1,2589.4,0.80508483]
[1723778111008,0.23887844,2589.8,2589.4,0.80508483]
[1723778111214,0.23887844,2589.7,2589.5,1.93086]
[1723778111365,2.4937,2590.1,2589.7,1.9307]
[1723778111571,0.23891183,2590.0,2589.7,1.9307]
[1723778111785,0.23891183,2589.9,2589.7,1.9307]
[1723778111995,0.23891183,2589.8,2589.7,1.9307]
[1723778113093,2.4937,2590.1,2589.8,1.93062]
[1723778113266,2.4937,2590.1,2589.5,3.25298483]
[1723778113267,0.23887718,2590.0,2589.9,1.93056]
[1723778113469,0.23887718,2590.0,2589.9,6.30903]
[1723778113680,6.05000984,2590.6,2590.2,1.93035]
[1723778113880,0.23883482,2590.5,2590.0,1.93046]
[1723778114081,0.23883482,2590.4,2590.1,1.93041]
[1723778114321,0.23883482,2590.3,2590.1,1.93041]
[1723778114624,2.72153482,2590.2,2589.8,1.93063]
[1723778114798,0.23883482,2590.1,2589.8,1.93063]
[1723778115001,0.23883482,2590.0,2589.8,1.93063]
[1723778115202,0.23883482,2589.9,2589.8,1.93063]
[1723778115395,0.23883482,2590.1,2589.8,1.93063]
[1723778115721,0.23883482,2590.0,2589.7,1.93071]
[1723778115924,0.23883482,2589.9,2589.8,1.93065]
[1723778116479,0.23883482,2589.9,2589.7,1.93071]
[1723778116480,2.4702,2590.4,2589.9,1.93055]
[1723778116678,0.23887104,2590.3,2589.9,1.93055]
[1723778116879,0.23887104,2590.2,2590.0,1.93047]
[1723778117094,0.23887104,2590.1,2590.0,1.93047]
[1723778117597,2.4702,2590.4,2590.0,1.93047]
[1723778117816,0.23886517,2590.3,2590.0,1.93047]
[1723778117995,0.23886517,2590.2,2590.0,1.93047]
[1723778118332,0.23886517,2590.1,2589.8,1.93061]
[1723778118530,0.23886517,2590.0,2589.9,1.93056]
[1723778118700,3.28130441,2590.4,2590.0,1.93049]
[1723778118905,0.23886546,2590.3,2590.0,1.93049]
[1723778119230,3.28130441,2590.4,2590.0,1.93049]
[1723778119231,0.23886546,2590.2,2590.0,1.93049]
[1723778119434,0.23886546,2590.1,2590.0,1.93049]
[1723778121403,33.20509407,2590.7,2590.3,1.93025]
[1723778121732,0.2388121,2590.6,2590.3,1.93025]
[1723778121904,2.2843,2590.7,2590.3,1.93025]
[1723778121905,0.2388121,2590.5,2590.3,1.93025]
[1723778122228,0.2388121,2590.4,2590.3,1.93025]
[1723778124230,2.2843,2590.7,2590.2,1.93034]
[1723778124231,0.2388121,2590.6,2590.2,1.93034]
[1723778124539,0.23879736,2590.5,2590.4,1.93016]
[1723778124899,0.23879736,2590.5,2590.3,1.93026]
[1723778125052,0.23879736,2590.4,2590.3,1.93026]
[1723778125558,2.88376309,2590.7,2590.3,1.93026]
[1723778125847,0.23882381,2590.6,2590.3,1.93026]
[1723778126053,0.23883498,2590.6,2590.3,1.93026]
[1723778126210,0.23883498,2590.5,2590.3,1.93026]
[1723778126413,0.23883498,2590.4,2590.3,1.93026]
[1723778129340,0.23883498,2590.4,2589.9,1.93052]
[1723778129341,2.73303498,2590.4,2589.9,1.93052]
[1723778129519,0.23883498,2590.3,2589.9,1.93052]
[1723778129720,0.23883498,2590.2,2590.1,1.93042]
[1723778130345,0.23881548,2590.2,2590.1,1.93042]
[1723778130551,0.23881548,2590.2,2590.1,6.29794]
[1723778131211,2.4942,2590.7,2590.3,1.93025]
[1723778131556,0.23881035,2590.6,2590.3,1.93025]
[1723778131751,0.23881035,2590.5,2590.3,1.93025]
[1723778132049,0.23881035,2590.4,2590.3,1.93025]
[1723778134713,0.23881035,2590.4,2590.3,3.86052]
[1723778135610,0.23881035,2590.4,2589.9,1.93056]
[1723778135814,2.73301035,2590.3,2589.9,1.93056]
[1723778136024,0.23881035,2590.2,2589.9,1.93056]
[1723778136255,0.23881035,2590.1,2589.9,1.93056]
[1723778136457,0.23881035,2590.0,2589.9,1.93056]
[1723778137607,2.4942,2590.3,2590.0,1.93043]
[1723778137811,3.71049831,2590.5,2590.4,1.93017]
[1723778138056,0.23880691,2590.5,2590.4,1.93017]
[1723778141620,2.4942,2590.9,2590.5,1.93012]
[1723778141815,3.94886891,2590.8,2590.5,1.93012]
[1723778142123,0.23878455,2590.7,2590.5,1.93012]
[1723778142362,0.23878455,2590.6,2590.5,1.93012]
[1723778143532,0.23878455,2590.6,2590.4,1.9302]
[1723778143770,0.23878455,2590.5,2590.4,1.9302]
[1723778145498,2.4942,2590.9,2590.4,1.9302]
[1723778145705,3.71034282,2590.7,2590.4,1.9302]
[1723778145850,0.23881347,2590.6,2590.4,1.9302]
[1723778146050,0.23881347,2590.5,2590.4,1.9302]
[1723778149692,0.23881433,2590.5,2590.4,1.9302]
[1723778150063,2.4942,2590.9,2590.4,1.9302]
[1723778150258,3.71030439,2590.7,2590.5,1.93012]
[1723778150485,0.23880863,2590.6,2590.5,1.93012]
[1723778151597,0.23880863,2590.6,2590.5,6.13394]
[1723778151807,0.23880863,2590.6,2590.5,44.48892466]
[1723778152101,23.48030439,2591.2,2590.9,1.92983]
[1723778152397,0.23870275,2591.1,2591.0,1.92975]
[1723778153804,4.71238809,2591.1,2590.7,1.92995]
[1723778154003,0.23871781,2591.0,2590.7,1.92995]
[1723778154206,0.23871781,2590.9,2590.8,3.8598]
[1723778154355,19.77,2591.2,2590.8,3.8598]
[1723778154356,19.77,2591.2,2591.0,1.92975]
[1723778154678,0.23869713,2591.1,2591.0,1.92975]
[1723778155920,0.23869713,2591.1,2591.0,3.8595]
[1723778156122,2.4071,2591.6,2591.1,1.92968]
[1723778156338,0.23865594,2591.5,2591.1,1.92968]
[1723778156541,0.23865594,2591.4,2591.1,1.92968]
[1723778156717,0.23865594,2591.3,2591.1,1.92968]
[1723778156919,0.23865594,2591.2,2591.0,1.92975]
[1723778157125,0.23865594,2591.1,2591.0,36.92975]
[1723778157554,0.23865594,2591.1,2591.0,1.92975]
[1723778157753,0.23865594,2591.4,2591.0,1.92975]
[1723778157920,0.23865594,2591.3,2591.0,1.92975]
[1723778158258,0.23865594,2591.2,2591.0,1.92975]
[1723778158424,0.23865594,2591.1,2591.0,1.92975]
[1723778158830,0.23865594,2591.3,2591.0,1.92975]
[1723778159139,2.3157,2591.1,2590.8,1.92988]
[1723778159344,2.3157,2591.1,2589.7,4.07]
[1723778159345,2.3157,2590.5,2590.1,0.80508483]
[1723778159648,1.9305,2590.0,2589.3,1.93101]
[1723778159970,1.9305,2590.0,2589.1,2.97881009]
[1723778159971,2.59387594,2589.9,2589.1,4.30497]
[1723778160117,0.23865594,2589.8,2589.1,4.30497]
[1723778160320,0.23865594,2589.7,2589.2,1.93108]
[1723778160552,0.23865594,2589.6,2589.2,1.93108]
[1723778160745,0.23865594,2589.5,2589.2,1.93108]
[1723778161045,0.23896769,2589.4,2589.1,4.30497]
[1723778161251,1.93079,2589.7,2588.9,1.93131]
[1723778161450,0.238972,2589.6,2588.8,2.3042]
[1723778161651,4.24615,2590.1,2589.3,1.93101]
[1723778161652,0.238972,2589.5,2589.3,1.93101]
[1723778161823,0.238972,2589.4,2589.3,1.93101]
[1723778162155,1.9305,2590.0,2589.3,1.93101]
[1723778162572,3.061715,2590.1,2588.9,1.93129]
[1723778162778,1.9308,2589.6,2588.9,1.93129]
[1723778163005,0.23898741,2589.5,2588.9,1.93129]
[1723778163311,0.23898741,2589.4,2588.9,1.93129]
[1723778163666,0.23898741,2589.3,2588.9,1.93129]
[1723778163901,1.9308,2589.6,2588.9,1.93129]
[1723778164087,0.23902602,2589.5,2588.9,1.93129]
[1723778164291,0.23902602,2589.4,2588.8,1.93138]
[1723778164898,2.53592602,2589.4,2588.8,1.93138]
[1723778165105,1.93117,2589.1,2588.4,1.93169]
[1723778165312,1.93132,2588.9,2588.1,1.93184]
[1723778165510,0.68585358,2588.8,2588.1,1.93184]
[1723778165669,2.2969,2589.0,2588.3,1.93174]
[1723778165670,0.23912898,2588.7,2588.3,1.93174]
[1723778165867,2.2969,2589.0,2588.3,1.93174]
[1723778166110,0.23913113,2588.9,2588.3,1.93174]
[1723778166317,1.93132,2588.9,2588.2,35.0]
[1723778166531,2.17056286,2588.8,2588.2,35.0]
[1723778166680,2.17063286,2588.7,2588.2,35.0]
[1723778166874,1.93147,2588.7,2588.2,35.0]
[1723778167105,2.547259,2588.9,2588.2,36.93183]
[1723778167308,2.2969,2589.0,2588.2,36.93183]
[1723778167309,4.22814,2589.0,2588.2,36.93183]
[1723778167525,0.23914216,2588.9,2588.2,36.93183]
[1723778167727,4.22814,2589.0,2588.2,36.93183]
[1723778168025,1.9314,2588.8,2588.2,35.0]
[1723778169347,1.9314,2588.8,2588.1,1.9319]
[1723778169814,1.9314,2588.8,2588.1,35.0]
[1723778170016,1.93147,2588.7,2588.1,35.0]
[1723778170309,1.93134,2588.9,2588.1,1.9319]
[1723778170526,4.650964,2589.0,2587.6,2.4621]
[1723778170527,2.719714,2589.0,2588.3,1.9317]
[1723778170728,2.2969,2589.0,2588.4,1.93168]
[1723778170900,2.2969,2589.0,2588.5,35.0]
[1723778172500,1.93146,2588.8,2588.0,1.93197]
[1723778172956,1.93148,2588.7,2588.1,35.0]
[1723778173455,1.93154,2588.6,2588.1,35.0]
[1723778173596,1.93164,2588.5,2588.1,35.0]
[1723778173945,1.93164,2588.5,2587.6,1.93226]
[1723778173946,1.93172,2588.4,2587.6,1.93226]
[1723778174102,1.93178,2588.3,2587.6,1.93226]
[1723778174303,0.62312,2588.3,2587.6,1.93226]
[1723778174627,29.5778,2588.5,2587.8,1.93214]
[1723778174811,31.50943,2588.5,2587.8,1.93214]
[1723778175628,29.5778,2588.5,2587.8,1.93214]
[1723778175831,31.50943,2588.5,2587.6,1.93226]
[1723778176029,35.31888125,2588.5,2587.7,1.93221]
[1723778177116,1.93169,2588.4,2587.7,1.93221]
[1723778177721,33.38725125,2588.5,2587.8,1.93213]
[1723778177919,33.38725125,2588.5,2587.9,1.93205]
[1723778178122,29.5778,2588.5,2588.0,1.93194]
[1723778178337,27.21,2588.5,2587.5,2.2562]
[1723778178509,27.21,2588.5,2588.0,1.93194]
[1723778179110,29.14163,2588.5,2587.6,1.93226]
[1723778179355,2.4664,2588.4,2587.8,1.93214]
[1723778179539,2.4664,2588.4,2587.6,1.93226]
[1723778179540,7.505428,2588.4,2587.6,1.93226]
[1723778179744,7.505428,2588.4,2587.7,1.93221]
[1723778180219,4.39811,2588.4,2587.7,1.93221]
[1723778180739,2.4664,2588.4,2587.8,1.93212]
[1723778181763,2.4664,2588.4,2588.0,1.93197]
[1723778182058,7.44,2588.5,2588.1,1.93184]
[1723778183152,7.44,2588.5,2588.1,1.93189]
[1723778183915,7.44,2588.5,2588.4,1.93169]
[1723778184118,1.93112,2589.2,2588.6,1.93154]
[1723778184119,2.3638,2589.1,2588.6,1.93154]
[1723778184816,4.295,2589.1,2588.4,36.93169]
[1723778185018,3.30781,2589.1,2588.4,35.0]
[1723778185263,3.30781,2589.1,2588.4,36.93169]
[1723778185566,5.23898,2589.1,2588.4,36.93169]
[1723778186195,3.30781,2589.1,2588.5,1.93161]
[1723778186514,1.93126,2589.0,2588.4,35.0]
[1723778186807,2.3638,2589.1,2588.4,36.93168]
[1723778186966,4.29498,2589.1,2588.4,36.93168]
[1723778187298,5.238983,2589.1,2588.4,36.93168]
[1723778188313,0.23784162,2589.0,2588.4,36.93168]
[1723778188464,0.23779412,2588.9,2588.4,36.93168]
[1723778188669,5.238983,2589.1,2588.4,36.93168]
[1723778188883,0.23781739,2589.0,2588.4,36.93168]
[1723778189082,0.23781739,2588.9,2588.4,36.93168]
[1723778189322,5.238983,2589.1,2588.4,36.93168]
[1723778189323,0.23778565,2588.8,2588.4,36.93168]
[1723778189623,0.23778565,2588.7,2588.4,1.93168]
[1723778189828,0.23778565,2588.6,2588.4,1.93168]
[1723778190133,8.93772574,2589.1,2588.5,35.0]
[1723778190429,8.93772574,2589.1,2588.2,1.93183]
[1723778190430,2.4843,2588.8,2587.7,2.251]
[1723778190730,0.23790035,2589.0,2588.5,1.9316]
[1723778190731,0.23790035,2588.7,2588.5,1.9316]
[1723778190901,23.46874274,2589.3,2588.6,35.0]
[1723778191228,0.23778977,2589.2,2588.6,36.93153]
[1723778191398,0.23778977,2589.1,2588.9,1.93126]
[1723778191601,29.6943,2589.4,2588.9,1.93126]
[1723778191602,0.23778977,2589.0,2588.9,1.93126]
[1723778192286,27.21,2589.4,2588.9,1.93126]
[1723778192482,0.23780163,2589.3,2588.9,1.93126]
[1723778192686,0.23780163,2589.2,2588.8,1.93139]
[1723778192927,2.2577,2589.1,2588.6,36.93152]
[1723778193083,0.23786943,2589.0,2588.6,36.93152]
[1723778193531,0.23786943,2589.0,2588.7,1.93145]
[1723778193698,0.23786943,2588.9,2588.8,1.93138]
[1723778193929,29.7077,2589.4,2589.0,1.93123]
[1723778194114,0.23756602,2589.3,2589.0,1.93123]
[1723778194313,0.23756602,2589.2,2589.0,1.93123]
[1723778194539,0.23756602,2589.1,2589.0,1.93123]
[1723778196125,0.23739891,2589.1,2589.0,1.93123]
[1723778196326,1.93081,2589.6,2589.0,1.93123]
[1723778196541,4.04690061,2589.5,2589.1,35.0]
[1723778196753,0.23744936,2589.4,2589.1,35.0]
[1723778196938,0.23751314,2589.3,2588.8,1.93138]
[1723778197144,0.23751314,2589.2,2588.8,1.93138]
[1723778197450,0.2375702,2589.1,2588.9,35.0]
[1723778197625,0.57402612,2589.4,2588.9,35.0]
[1723778197827,0.23760496,2589.3,2588.9,35.0]
[1723778198027,2.50280496,2589.2,2588.9,35.0]
[1723778198323,0.23760496,2589.1,2588.9,35.0]
[1723778199133,0.23760496,2589.1,2588.4,1.93167]
[1723778199665,0.23760496,2589.1,2588.5,35.0]
[1723778199973,0.23760496,2589.1,2588.7,1.93146]
[1723778200632,0.23760496,2589.1,2588.8,35.0]
[1723778200851,0.23760496,2589.1,2588.6,1.93154]
[1723778201051,0.2379117,2589.0,2588.6,1.93154]
[1723778201255,2.2652,2589.2,2588.6,36.93154]
[1723778201256,0.2379117,2588.9,2588.6,36.93154]
[1723778201531,2.2652,2589.2,2588.6,36.93154]
[1723778201737,2.373,2589.0,2588.2,1.93182]
[1723778201928,2.16917139,2588.9,2588.2,1.93182]
[1723778202133,0.23779139,2588.8,2588.2,1.93182]
[1723778202430,0.23779139,2588.7,2588.2,36.93182]
[1723778202630,0.23779139,2588.6,2588.2,35.0]
[1723778202880,0.23779139,2588.5,2588.2,35.0]
[1723778203164,0.23779139,2588.4,2588.1,1.93189]
[1723778203473,2.38560714,2588.8,2588.1,1.93189]
[1723778203679,0.47614125,2588.7,2588.1,36.93189]
[1723778203972,0.23758054,2588.6,2588.1,36.93189]
[1723778204276,0.23758054,2588.5,2588.1,36.93189]
[1723778204578,2.38560714,2588.8,2588.1,36.93189]
[1723778204878,0.23743631,2588.7,2588.1,36.93189]
[1723778205033,0.23743881,2588.7,2588.1,36.93189]
[1723778205235,0.23743881,2588.6,2588.1,36.93189]
[1723778205458,0.23743881,2588.5,2588.1,36.93189]
[1723778205639,2.38560714,2588.8,2588.1,36.93189]
[1723778205853,0.23738362,2588.7,2588.2,1.93183]
[1723778206058,0.23738362,2588.6,2588.2,1.93183]
[1723778206378,0.23738362,2588.5,2588.2,1.93183]
[1723778206591,0.45421714,2588.8,2588.2,1.93183]
[1723778206813,0.23736548,2588.7,2588.2,1.93183]
[1723778207094,0.23736548,2588.6,2588.2,36.93183]
[1723778207255,0.23736548,2588.5,2588.2,36.93183]
[1723778207447,0.45421714,2588.8,2588.2,36.93183]
[1723778207652,0.23713945,2588.7,2588.2,36.93183]
[1723778207859,0.23713945,2588.6,2588.2,35.0]
[1723778208060,9.813,2589.0,2588.3,2.265]
[1723778208373,0.237022,2588.9,2588.6,1.93153]
[1723778208684,0.237022,2588.8,2588.6,1.93153]
[1723778208887,9.813,2589.0,2588.6,1.93153]
[1723778208888,0.237022,2588.7,2588.6,1.93153]
[1723778209080,0.23686302,2588.7,2588.6,1.93153]
[1723778209500,9.813,2589.0,2588.6,1.93153]
[1723778209799,0.23672374,2588.9,2588.4,1.93168]
[1723778210092,0.23672374,2588.8,2588.4,1.93168]
[1723778210264,0.23672374,2588.7,2588.4,1.93168]
[1723778210467,0.23672374,2588.6,2588.4,1.93168]
[1723778210680,11.71237345,2589.0,2588.4,1.93168]
[1723778211006,0.23681127,2588.9,2588.5,1.93161]
[1723778211184,0.23681127,2588.8,2588.5,1.93161]
[1723778211493,0.23681127,2588.7,2588.4,1.93168]
[1723778211699,0.23681127,2588.6,2588.4,1.93168]
[1723778211868,11.71237345,2589.0,2588.2,1.93183]
[1723778212071,0.2367881,2588.9,2588.2,1.93183]
[1723778212266,0.2367881,2588.8,2588.3,1.93176]
[1723778212467,0.2367881,2588.7,2588.6,1.93153]
[1723778216077,0.2367881,2588.7,2588.6,36.93153]
[1723778217165,8.09445476,2589.2,2588.6,36.93153]
[1723778217166,4.41921,2589.2,2588.6,36.93153]
[1723778217369,0.23651179,2589.1,2588.6,1.93153]
[1723778217570,9.47092273,2589.2,2588.6,1.93153]
[1723778217571,0.23651179,2589.0,2588.6,1.93153]
[1723778217783,9.47092273,2589.2,2588.6,1.93153]
[1723778217784,0.23651179,2588.9,2588.6,1.93153]
[1723778217980,9.47092273,2589.2,2588.6,1.93153]
[1723778217981,0.23651179,2588.8,2588.6,1.93153]
[1723778218295,0.23651179,2588.7,2588.6,1.93153]
[1723778220072,0.23651179,2588.7,2588.5,35.0]
[1723778220263,0.23651179,2588.6,2588.5,35.0]
[1723778220764,4.4192,2589.2,2588.5,35.0]
[1723778220965,5.1013107,2589.1,2588.5,35.0]
[1723778221201,0.23688834,2589.0,2588.5,35.0]
[1723778221406,0.23688834,2588.9,2588.5,36.93161]
[1723778221707,0.23688834,2588.8,2588.5,35.0]
[1723778221903,0.23688834,2588.7,2588.5,35.0]
[1723778222094,0.23688834,2588.6,2588.5,35.0]
[1723778222290,0.23688834,2589.0,2588.5,35.0]
[1723778222477,0.23688834,2588.9,2588.5,35.0]
[1723778222809,0.23688834,2588.8,2588.5,35.0]
[1723778223002,0.23707941,2588.7,2588.3,1.93176]
[1723778223169,0.23707941,2588.6,2588.3,1.93176]
[1723778223371,0.23707941,2588.5,2588.3,36.93176]
[1723778223611,0.79437982,2588.9,2588.3,36.93176]
[1723778223813,0.23712142,2588.8,2588.3,36.93176]
[1723778224114,0.23712142,2588.7,2588.3,36.93176]
[1723778224304,0.23712142,2588.6,2588.3,36.93176]
[1723778224518,0.23712142,2588.5,2588.3,36.93176]
[1723778224696,2.4127,2588.7,2588.2,1.93183]
[1723778224697,0.23712142,2588.4,2588.2,1.93183]
[1723778224904,0.23712142,2588.3,2588.2,1.93183]
[1723778225140,2.4127,2588.7,2588.2,1.93183]
[1723778225412,0.23667574,2588.6,2588.2,1.93183]
[1723778225704,0.23667574,2588.6,2588.1,1.93191]
[1723778225705,0.23667574,2588.5,2588.3,1.93176]
[1723778225918,0.23667574,2588.4,2588.3,1.93176]
[1723778226974,0.23667574,2588.4,2588.1,1.93191]
[1723778227178,2.4127,2588.7,2588.1,1.93191]
[1723778227179,0.23667574,2588.3,2588.1,1.93191]
[1723778227383,2.4127,2588.7,2588.1,1.93191]
[1723778227583,0.23628421,2588.6,2588.2,36.93183]
[1723778227910,0.23628421,2588.5,2588.2,36.93183]
[1723778228113,0.23628421,2588.4,2588.3,1.9317]
[1723778228327,3.66830782,2589.1,2588.6,1.93152]
[1723778228481,0.23635576,2589.0,2588.6,1.93152]
[1723778228673,0.23635576,2588.9,2588.8,1.93138]
[1723778229090,7.44,2589.3,2588.9,1.93131]
[1723778229279,7.44,2589.3,2589.0,1.93123]
[1723778229280,0.23628753,2589.2,2589.0,1.93123]
[1723778229479,0.23628753,2589.1,2588.9,1.93131]
[1723778229779,0.23628753,2589.0,2588.9,1.93131]
[1723778230270,0.23628753,2589.0,2588.8,35.0]
[1723778230493,0.23628753,2588.9,2588.8,35.0]
[1723778231074,0.23628753,2588.9,2588.8,36.93139]
[1723778232229,7.44,2589.3,2588.8,36.93139]
[1723778232403,0.23624013,2589.2,2588.8,36.93139]
[1723778232727,0.23611557,2589.1,2588.9,1.9313]
[1723778232938,0.23611557,2589.0,2588.9,1.9313]
[1723778234013,0.23611557,2589.0,2588.8,36.93139]
[1723778234222,0.23611557,2588.9,2588.8,36.93139]
[1723778234518,0.23611557,2589.2,2588.6,1.9315]
[1723778234717,0.23611557,2589.1,2588.6,1.9315]
[1723778235031,0.23611557,2589.0,2588.5,36.93157]
[1723778235240,0.23611557,2588.9,2588.6,1.93153]
[1723778235412,0.23611557,2588.8,2588.6,1.93153]
[1723778235622,0.23611557,2588.7,2588.6,1.93153]
[1723778235946,0.60582778,2589.2,2588.6,1.93153]
[1723778236143,0.23593746,2589.1,2588.6,1.93153]
[1723778236445,0.2359479,2589.0,2588.7,1.93146]
[1723778236741,6.05546945,2589.4,2588.7,1.93146]
[1723778236742,0.2359479,2588.9,2588.7,1.93146]
[1723778236918,0.2359479,2588.8,2588.7,1.93146]
[1723778237114,0.2359479,2589.2,2588.7,1.93146]
[1723778237427,0.2359479,2589.1,2588.7,1.93146]
[1723778237612,0.2359479,2589.0,2588.7,1.93146]
[1723778237816,0.2359479,2588.9,2588.7,1.93146]
[1723778238020,0.625313,2589.3,2588.7,1.93146]
[1723778238233,0.23638165,2589.2,2588.7,1.93146]
[1723778238434,0.23638165,2589.1,2588.7,1.93146]
[1723778238739,0.23638165,2589.0,2588.7,36.93146]
[1723778238945,0.23638165,2588.9,2588.7,36.93146]
[1723778239158,0.23638165,2588.8,2588.7,36.93146]
[1723778239448,6.05546945,2589.4,2588.8,1.93134]
[1723778239745,0.23615861,2589.3,2588.8,1.93134]
[1723778239906,0.23615861,2589.2,2588.8,1.93134]
[1723778240099,0.23615861,2589.1,2588.8,1.93134]
[1723778240315,6.05546945,2589.4,2588.8,1.93134]
[1723778240316,0.23615861,2589.0,2588.8,1.93134]
[1723778240502,0.23615861,2588.9,2588.8,1.93134]
[1723778240733,0.23598671,2588.9,2588.8,1.93134]
[1723778241305,0.23590345,2588.9,2588.8,1.93134]
[1723778242132,0.23590345,2588.9,2588.5,1.93156]
[1723778242352,0.23590345,2588.8,2588.5,1.93156]
[1723778242654,2.4769,2589.0,2588.6,36.93154]
[1723778242834,0.23592315,2588.9,2588.6,36.93154]
[1723778243151,0.23592315,2588.8,2588.6,36.93154]
[1723778243307,0.23575046,2588.7,2588.6,36.93154]
[1723778243734,2.4769,2589.0,2588.6,36.93154]
[1723778243936,0.23565125,2588.9,2588.6,36.93154]
[1723778244135,0.23565125,2588.8,2588.7,1.93147]
[1723778244567,4.39168,2589.3,2588.6,35.0]
[1723778244853,4.39168,2589.3,2588.4,1.93168]
[1723778244854,2.332,2588.7,2588.4,1.93168]
[1723778245049,0.23546599,2588.6,2588.4,1.93168]
[1723778245223,2.332,2588.7,2588.4,1.93168]
[1723778245224,0.23546599,2588.5,2588.4,1.93168]
[1723778245410,0.23546599,2588.6,2588.4,1.93168]
[1723778245746,0.23546599,2588.5,2588.4,1.93168]
[1723778247913,0.21352615,2588.5,2588.4,1.93168]
[1723778249208,2.2539,2588.9,2588.3,35.0]
[1723778249209,2.2539,2588.9,2588.5,1.9316]
[1723778249414,2.2539,2588.9,2588.6,1.93154]
[1723778249609,9.8231,2589.1,2588.7,1.93146]
[1723778250223,7.44,2589.1,2588.6,1.93148]
[1723778250428,7.44,2589.1,2588.9,1.93128]
[1723778250615,7.44,2589.1,2589.0,1.93124]
[1723778251052,7.44,2589.1,2588.9,1.93128]
[1723778251814,2.3831,2589.4,2588.9,1.93128]
[1723778254732,2.3831,2589.4,2589.0,1.93124]
[1723778256929,13.40657405,2589.6,2588.9,2.3082]
[1723778257115,19.77,2589.7,2589.6,1.9308]
[1723778260067,19.77,2589.7,2589.6,36.9308]
[1723778260408,9.7867,2590.3,2589.8,1.93064]
[1723778260698,22.1167,2590.6,2589.8,2.3679]
[1723778260846,22.1167,2590.6,2590.1,1.93036]
[1723778260847,0.23554142,2590.5,2590.1,1.93036]
[1723778261049,0.23554142,2590.4,2590.2,1.93034]
[1723778261290,22.1167,2590.6,2590.2,1.93034]
[1723778261503,0.23556645,2590.5,2590.2,1.93034]
[1723778261649,22.1167,2590.6,2590.2,1.93034]
[1723778261852,0.23550499,2590.5,2590.0,1.93049]
[1723778262076,22.1167,2590.6,2590.1,1.93042]
[1723778262280,0.235516,2590.5,2590.1,1.93042]
[1723778262488,22.1167,2590.6,2590.2,1.93034]
[1723778262676,0.23570314,2590.5,2589.7,2.3679]
[1723778262876,2.16590314,2590.4,2589.7,4.29861]
[1723778263070,26.25102614,2590.6,2589.6,35.0]
[1723778263071,0.23570314,2590.3,2589.6,36.93079]
[1723778263251,22.1167,2590.6,2590.0,1.93047]
[1723778263451,0.23564671,2590.5,2589.9,1.93057]
[1723778263695,0.23564671,2590.4,2589.9,1.93057]
[1723778263989,0.23564852,2590.3,2589.9,1.93057]
[1723778264202,4.2768,2590.6,2589.9,1.93057]
[1723778264409,0.85634039,2590.5,2589.9,1.93057]
[1723778264712,0.620678,2590.5,2589.9,1.93057]
[1723778264861,0.23571704,2590.4,2589.9,1.93057]
[1723778265067,0.620678,2590.5,2589.9,1.93057]
[1723778265323,0.620678,2590.5,2590.0,1.93048]
[1723778265479,2.3467,2590.6,2590.1,1.93041]
[1723778265673,0.23587728,2590.5,2590.1,1.93041]
[1723778265897,2.3467,2590.6,2590.1,1.93041]
[1723778268913,2.3467,2590.6,2589.9,1.93057]
[1723778269120,0.427668,2590.5,2589.9,1.93057]
[1723778269321,0.427668,2590.5,2590.0,1.93049]
[1723778269879,2.357808,2590.5,2589.7,1.9307]
[1723778270084,2.4665,2590.3,2589.8,1.93064]
[1723778272895,4.39678,2590.3,2589.6,1.93079]
[1723778273191,2.75602928,2590.3,2589.7,1.93067]
[1723778273905,2.4665,2590.3,2589.8,1.93057]
[1723778274316,2.4665,2590.3,2589.5,37.4519]
[1723778274317,2.3873,2590.7,2590.2,1.93028]
[1723778274518,0.98273,2590.6,2590.2,1.93028]
[1723778277217,0.98273,2590.6,2590.0,4.31782]
[1723778277419,0.98273,2590.6,2590.0,1.93042]
[1723778277662,2.91282,2590.6,2589.8,1.93062]
[1723778277867,3.2921081,2590.5,2589.8,1.93062]
[1723778278026,0.2350961,2590.4,2589.8,1.93062]
[1723778278361,4.26417,2590.5,2589.8,1.93062]
[1723778278654,0.23503536,2590.4,2589.8,1.93062]